[Event "94th FRA-ch Open D 2019"]
[Site "Chartres"]
[Date "2019.08.20"]
[Round "4.1"]
[White "Azen, Bernard"]
[Black "Minatchy, Tristan"]
[Result "0-1"]
[ECO "E73"]
[WhiteElo "1532"]
[BlackElo "1452"]
[Annotator "NA"]
[PlyCount "94"]
[EventDate "2019.08.17"]
[EventType "swiss"]
[EventCountry "FRA"]
[SourceTitle "playchess.com"]
[Source "ChessBase"]
[SourceQuality "1"]
[TimeControl "40/5400+30:1800+30"]

1. d4 {[%emt 0:00:00]} Nf6 {[%emt 0:00:00]} 2. c4 {[%emt 0:00:00]} g6 {[%emt 0:00:00]} 3. Nc3 {[%emt 0:00:00]} Bg7 {[%emt 0:00:00]} 4. e4 {[%emt 0:00:12]} d6 {[%emt 0:00:16]} 5. Be2 {[%emt 0:00:15]} O-O {[%emt 0:00:20]} 6. h4 {[%emt 1:32:33]} h5 {[%emt 0:06:56]} 7. Be3 {[%emt 0:00:00]} e5 {[%emt 0:03:24]} 8. d5 {[%emt 0:00:00]} Nbd7 {[%emt 0:12:16]} 9. Qd2 {[%emt 0:00:00]} Nc5 {[%emt 0:05:21]} 10. f3 {[%emt 0:00:00]} a5 {[%emt 0:00:12]} 11. O-O-O {[%emt 0:00:00]} b6 {[%emt 0:05:42]} 12. Nh3 {[%emt 0:00:00]} Bd7 {[%emt 0:08:28]} 13. Ng5 {[%emt 0:00:00]} a4 {[%emt 0:03:25]} 14. Kb1 {[%emt 0:00:00]} Qe7 {[%emt 0:01:26]} 15. Rdg1 {[%emt 0:00:00]} Rab8 {[%emt 0:12:25]} 16. Qd1 {[%emt 0:00:00]} a3 {[%emt 0:10:19]} 17. b4 {[%emt 0:00:00]} Na6 {[%emt 0:00:39]} 18. b5 {[%emt 0:00:00]} Nc5 {[%emt 0:00:27]} 19. g4 {[%emt 0:00:00]} Ra8 {[%emt 0:00:13]} 20. Rg2 {[%emt 0:00:00]} Bc8 {[%emt 0:06:57]} 21. Rhg1 {[%emt 0:00:00]} Ncd7 {[%emt 0:00:24]} 22. Bc1 {[%emt 0:00:00]} Bb7 {[%emt 0:05:43]} 23. Qb3 {[%emt 0:00:00]} Nc5 {[%emt 0:00:04]} 24. Qb4 {[%emt 0:00:00]} Ra7 {[%emt 0:00:12]} 25. Bxa3 {[%emt 0:00:00]} Rfa8 {[%emt 0:00:04]} 26. Bc1 {[%emt 0:00:00]} Na4 {[%emt 0:00:07]} 27. a3 {[%emt 0:00:00]} Bc8 {[%emt 0:02:30]} 28. Bd1 {[%emt 0:00:00]} Nc5 {[%emt 0:00:33]} 29. Rd2 {[%emt 0:00:00]} Bh6 {[%emt 0:02:11]} 30. Be2 hxg4 31. fxg4 {[%emt 0:00:00]} Nh7 {[%emt 0:05:18]} 32. Rdd1 {[%emt 0:00:00]} Nxg5 {[%emt 0:00:44]} 33. Rdf1 {[%emt 0:00:00]} Nh3 {[%emt 0:01:58]} 34. g5 {[%emt 0:14:00]} Nxg1 {[%emt 0:01:14]} 35. Rxg1 {[%emt 0:00:00]} Bg7 {[%emt 0:00:43]} 36. h5 {[%emt 0:01:00]} Bd7 {[%emt 0:03:24]} 37. h6 {[%emt 0:00:00]} Bh8 {[%emt 0:00:42]} 38. Ka2 {[%emt 0:00:00]} Kh7 {[%emt 0:00:32]} 39. Qb1 {[%emt 0:00:00]} f6 {[%emt 0:00:21]} 40. Qc2 {[%emt 0:00:00]} fxg5 {[%emt 0:00:43]} 41. Nb1 {[%emt 0:02:02]} Bf6 {[%emt 0:30:48]} 42. Nd2 {[%emt 0:05:32]} g4 {[%emt 0:01:10]} 43. Nf1 {[%emt 0:01:17]} Bg5 {[%emt 0:00:23]} 44. Bb2 {[%emt 0:00:08]} Na4 {[%emt 0:01:23]} 45. Ba1 {[%emt 0:01:01]} Qf6 {[%emt 0:01:10]} 46. Qd1 {[%emt 0:01:14]} Qf2 {[%emt 0:00:00]} 47. Rh1 {[%emt 0:00:00]} Nc3+ {[%emt 0:00:00]} 0-1

[Event "94th FRA-ch Open D 2019"]
[Site "Chartres"]
[Date "2019.08.20"]
[Round "4.2"]
[White "Legeay, Julie"]
[Black "Breuil, Virgile"]
[Result "1-0"]
[ECO "A30"]
[WhiteElo "1531"]
[BlackElo "1388"]
[Annotator "NA"]
[PlyCount "99"]
[EventDate "2019.08.17"]
[EventType "swiss"]
[EventCountry "FRA"]
[SourceTitle "playchess.com"]
[Source "ChessBase"]
[SourceQuality "1"]
[TimeControl "40/5400+30:1800+30"]

1. Nf3 {[%emt 0:00:00]} d5 {[%emt 0:00:00]} 2. g3 {[%emt 0:00:00]} Nf6 {[%emt 0:00:35]} 3. Bg2 {[%emt 0:00:25]} e6 {[%emt 0:00:41]} 4. O-O {[%emt 0:00:46]} c5 {[%emt 0:00:39]} 5. d3 {[%emt 0:01:25]} Nc6 {[%emt 0:00:52]} 6. c4 {[%emt 0:01:25]} Be7 {[%emt 0:01:02]} 7. cxd5 {[%emt 0:01:39]} exd5 {[%emt 0:00:36]} 8. Nc3 {[%emt 0:01:58]} O-O {[%emt 0:00:56]} 9. a3 {[%emt 0:02:04]} Re8 {[%emt 0:01:15]} 10. Rb1 {[%emt 0:00:56]} Bf5 {[%emt 0:00:48]} 11. Bd2 {[%emt 0:06:34]} c4 {[%emt 0:00:36]} 12. Nh4 {[%emt 0:00:20]} Bg6 {[%emt 0:01:23]} 13. Nxg6 {[%emt 0:00:23]} fxg6 {[%emt 0:00:08]} 14. dxc4 {[%emt 0:02:02]} dxc4 {[%emt 0:00:21]} 15. Bf4 {[%emt 0:02:36]} Qb6 {[%emt 0:02:30]} 16. Nd5 {[%emt 0:08:19]} Qc5 {[%emt 0:02:22]} 17. Nc7 {[%emt 0:04:11]} Rad8 {[%emt 0:01:13]} 18. Qc1 {[%emt 0:01:14]} Nd4 {[%emt 0:01:53]} 19. Re1 {[%emt 0:03:18]} Bd6 {[%emt 0:02:39]} 20. Nxe8 {[%emt 0:01:38]} Rxe8 {[%emt 0:00:53]} 21. Bxd6 {[%emt 0:00:48]} Qxd6 {[%emt 0:00:52]} 22. Qxc4+ {[%emt 0:08:23]} Kh8 {[%emt 0:00:44]} 23. e3 {[%emt 0:00:28]} Ne6 {[%emt 0:01:03]} 24. Red1 {[%emt 0:03:50]} Qf8 {[%emt 0:01:44]} 25. Bxb7 {[%emt 0:03:56]} Ng5 {[%emt 0:01:27]} 26. Bg2 {[%emt 0:05:40]} Rc8 {[%emt 0:01:25]} 27. Qb4 {[%emt 0:01:15]} Qf7 {[%emt 0:00:34]} 28. Rbc1 {[%emt 0:01:30]} Rf8 {[%emt 0:00:25]} 29. Qc4 {[%emt 0:07:12]} Qe8 {[%emt 0:01:12]} 30. Qc6 {[%emt 0:06:36]} Qe7 {[%emt 0:01:10]} 31. Rc4 {[%emt 0:02:02]} Qf7 {[%emt 0:01:22]} 32. Rdc1 {[%emt 0:03:53]} h6 {[%emt 0:00:49]} 33. Qb7 {[%emt 0:00:48]} Qe6 {[%emt 0:01:12]} 34. Rc8 {[%emt 0:02:53]} Ne8 {[%emt 0:00:36]} 35. R1c7 {[%emt 0:02:46]} Qf6 {[%emt 0:01:09]} 36. Rc2 {[%emt 0:01:00]} Kh7 {[%emt 0:01:12]} 37. Qa8 {[%emt 0:01:26]} Qf7 {[%emt 0:03:31]} 38. h4 {[%emt 0:01:39]} Ne6 {[%emt 0:01:10]} 39. Bd5 {[%emt 0:00:23]} Qe7 {[%emt 0:01:58]} 40. Bxe6 {[%emt 0:05:26]} Qxe6 {[%emt 0:00:17]} 41. Qxa7 {[%emt 0:30:14]} Rf7 {[%emt 0:30:37]} 42. Qa8 {[%emt 0:00:30]} Re7 {[%emt 0:00:51]} 43. b4 {[%emt 0:02:58]} g5 {[%emt 0:00:20]} 44. hxg5 {[%emt 0:02:01]} hxg5 {[%emt 0:00:26]} 45. Qh1+ {[%emt 0:00:38]} Kg8 {[%emt 0:00:40]} 46. Qh5 {[%emt 0:02:26]} g6 {[%emt 0:01:05]} 47. Qxg5 {[%emt 0:00:55]} Rh7 {[%emt 0:00:47]} 48. R2c6 {[%emt 0:00:00]} Qd7 {[%emt 0:00:00]} 49. Qxg6+ {[%emt 0:00:00]} Kf8 {[%emt 0:00:00]} 50. Rf6+ {[%emt 0:00:00]} 1-0

[Event "94th FRA-ch Open D 2019"]
[Site "Chartres"]
[Date "2019.08.20"]
[Round "4.3"]
[White "Pertuy, Noe"]
[Black "Rolland Piegue, Sacha"]
[Result "0-1"]
[ECO "E44"]
[WhiteElo "1530"]
[BlackElo "1385"]
[Annotator "NA"]
[PlyCount "84"]
[EventDate "2019.08.17"]
[EventType "swiss"]
[EventCountry "FRA"]
[SourceTitle "playchess.com"]
[Source "ChessBase"]
[SourceQuality "1"]
[TimeControl "40/5400+30:1800+30"]

1. d4 {[%emt 0:00:00]} Nf6 {[%emt 0:00:00]} 2. c4 {[%emt 0:00:00]} e6 {[%emt 0:00:17]} 3. Nc3 {[%emt 0:00:00]} Bb4 {[%emt 0:00:36]} 4. e3 {[%emt 0:00:31]} O-O {[%emt 0:01:01]} 5. Nge2 {[%emt 0:00:12]} d5 {[%emt 0:01:00]} 6. a3 {[%emt 0:00:20]} Bxc3+ {[%emt 0:00:18]} 7. Nxc3 {[%emt 0:00:18]} b6 {[%emt 0:00:49]} 8. cxd5 {[%emt 0:05:20]} Nxd5 {[%emt 0:00:39]} 9. Bd3 {[%emt 0:00:16]} Bb7 {[%emt 0:00:21]} 10. O-O {[%emt 0:02:28]} Nxc3 {[%emt 0:01:16]} 11. bxc3 {[%emt 0:00:12]} Nd7 {[%emt 0:00:42]} 12. e4 {[%emt 0:03:40]} c5 {[%emt 0:01:51]} 13. e5 {[%emt 0:06:48]} cxd4 {[%emt 0:01:12]} 14. cxd4 {[%emt 0:00:10]} Rc8 {[%emt 0:00:34]} 15. Qg4 {[%emt 0:04:21]} Nxe5 {[%emt 0:00:33]} 16. dxe5 {[%emt 0:00:52]} Qxd3 {[%emt 0:00:18]} 17. Bf4 {[%emt 0:09:27]} Rc4 {[%emt 0:03:42]} 18. Qg3 {[%emt 0:07:17]} Qe4 {[%emt 0:01:01]} 19. Be3 {[%emt 0:03:15]} Rfc8 {[%emt 0:00:48]} 20. Rfd1 {[%emt 0:02:55]} Bd5 {[%emt 0:01:09]} 21. h3 {[%emt 0:06:14]} h5 {[%emt 0:01:38]} 22. Kh2 {[%emt 0:08:37]} h4 {[%emt 0:00:32]} 23. Qg5 {[%emt 0:00:22]} Rc2 {[%emt 0:01:10]} 24. Rd4 {[%emt 0:00:27]} Qg6 {[%emt 0:02:34]} 25. Qxg6 {[%emt 0:00:50]} fxg6 {[%emt 0:00:16]} 26. Rxh4 {[%emt 0:00:05]} Rf8 {[%emt 0:01:56]} 27. Ra4 {[%emt 0:01:41]} Rf7 {[%emt 0:00:25]} 28. g4 {[%emt 0:03:49]} g5 {[%emt 0:00:31]} 29. Rf1 {[%emt 0:09:16]} Ra2 {[%emt 0:02:36]} 30. Kg1 {[%emt 0:01:16]} Rf3 {[%emt 0:01:40]} 31. Rxa7 {[%emt 0:00:59]} Rxh3 {[%emt 0:00:14]} 32. f3 {[%emt 0:08:46]} Bxf3 {[%emt 0:00:15]} 33. Rxf3 {[%emt 0:00:09]} Rxf3 {[%emt 0:00:06]} 34. Bxb6 {[%emt 0:00:53]} Rb3 {[%emt 0:00:08]} 35. Bf2 {[%emt 0:00:48]} Rb1+ {[%emt 0:00:05]} 36. Kg2 {[%emt 0:00:23]} Rbb2 {[%emt 0:00:10]} 37. Ra8+ {[%emt 0:00:03]} Kf7 {[%emt 0:00:14]} 38. Kg3 {[%emt 0:01:26]} Rxf2 {[%emt 0:00:20]} 39. Ra7+ {[%emt 0:00:22]} Kg8 {[%emt 0:00:24]} 40. Ra6 {[%emt 0:00:21]} Rfe2 {[%emt 0:00:57]} 41. Kf3 {[%emt 0:30:48]} Rxe5 {[%emt 0:30:16]} 42. a4 {[%emt 0:00:32]} Rae2 {[%emt 0:00:28]} 0-1

[Event "94th FRA-ch Open D 2019"]
[Site "Chartres"]
[Date "2019.08.20"]
[Round "4.4"]
[White "Nezosi, Christophe"]
[Black "Moquet, Evariste"]
[Result "1-0"]
[ECO "B09"]
[WhiteElo "1523"]
[BlackElo "1309"]
[Annotator "NA"]
[PlyCount "47"]
[EventDate "2019.08.17"]
[EventType "swiss"]
[EventCountry "FRA"]
[SourceTitle "playchess.com"]
[Source "ChessBase"]
[SourceQuality "1"]
[TimeControl "40/5400+30:1800+30"]

1. e4 {[%emt 1:30:30]} d6 {[%emt 1:30:30]} 2. d4 {[%emt 0:00:30]} Nf6 {[%emt 0:00:30]} 3. Nc3 {[%emt 0:00:30]} g6 {[%emt 0:00:30]} 4. f4 {[%emt 0:00:30]} Bg7 {[%emt 0:00:30]} 5. Bd3 {[%emt 0:00:30]} O-O {[%emt 0:00:30]} 6. Nf3 {[%emt 0:00:30]} Nbd7 {[%emt 0:00:30]} 7. Be3 {[%emt 0:00:30]} c5 {[%emt 0:00:30]} 8. Qd2 {[%emt 0:00:30]} Ng4 {[%emt 0:00:30]} 9. Bg1 {[%emt 0:00:30]} Qb6 {[%emt 0:00:30]} 10. Na4 {[%emt 0:00:30]} Qc6 {[%emt 0:00:30]} 11. Nc3 {[%emt 0:00:30]} Ngf6 {[%emt 0:00:30]} 12. O-O-O {[%emt 0:00:30]} a6 {[%emt 0:00:30]} 13. e5 {[%emt 0:00:30]} dxe5 {[%emt 0:00:30]} 14. dxe5 {[%emt 0:00:30]} Ng4 {[%emt 0:00:30]} 15. h3 {[%emt 0:00:30]} Nh6 {[%emt 0:00:30]} 16. Be4 {[%emt 0:00:30]} Qc7 {[%emt 0:00:30]} 17. Nd5 {[%emt 0:00:30]} Qd8 {[%emt 0:00:30]} 18. Bf2 {[%emt 0:00:30]} Nb6 {[%emt 0:00:30]} 19. Nf6+ {[%emt 0:00:30]} exf6 {[%emt 0:00:30]} 20. Qxd8 {[%emt 0:00:30]} Rxd8 {[%emt 0:00:30]} 21. Rxd8+ {[%emt 0:00:30]} Bf8 {[%emt 0:00:30]} 22. Bxc5 {[%emt 0:00:30]} Nd7 {[%emt 0:00:30]} 23. Bxf8 {[%emt 0:00:30]} Nxf8 {[%emt 0:00:30]} 24. exf6 {[%emt 0:00:30]} 1-0

[Event "94th FRA-ch Open D 2019"]
[Site "Chartres"]
[Date "2019.08.20"]
[Round "4.5"]
[White "Lissillour, Baptiste"]
[Black "Dartigues, Antoine"]
[Result "1/2-1/2"]
[ECO "D34"]
[WhiteElo "1469"]
[BlackElo "1288"]
[Annotator "NA"]
[PlyCount "98"]
[EventDate "2019.08.17"]
[EventType "swiss"]
[EventCountry "FRA"]
[SourceTitle "playchess.com"]
[Source "ChessBase"]
[SourceQuality "1"]
[TimeControl "40/5400+30:1800+30"]

1. d4 {[%emt 0:00:00]} d5 {[%emt 0:00:00]} 2. Nf3 {[%emt 0:00:08]} c5 {[%emt 0:00:00]} 3. c4 {[%emt 0:00:53]} e6 {[%emt 0:00:13]} 4. cxd5 {[%emt 0:00:26]} exd5 {[%emt 0:00:27]} 5. g3 {[%emt 0:00:32]} Nc6 {[%emt 0:01:47]} 6. Bg2 {[%emt 0:00:31]} Nf6 {[%emt 0:00:54]} 7. O-O {[%emt 0:00:52]} Be7 {[%emt 0:04:28]} 8. Nc3 {[%emt 0:01:48]} O-O {[%emt 0:02:17]} 9. Bf4 {[%emt 0:07:20]} Qb6 {[%emt 0:06:33]} 10. Na4 {[%emt 0:04:31]} Qb4 {[%emt 0:02:20]} 11. a3 {[%emt 0:01:21]} Qb5 {[%emt 0:00:55]} 12. dxc5 {[%emt 0:02:46]} Bxc5 {[%emt 0:01:25]} 13. b4 {[%emt 0:02:23]} Bb6 {[%emt 0:08:15]} 14. Nc3 {[%emt 0:10:29]} Qc4 {[%emt 0:00:43]} 15. Rc1 {[%emt 0:02:21]} d4 {[%emt 0:00:25]} 16. Ne4 {[%emt 0:01:15]} Qe6 {[%emt 0:03:25]} 17. Nfg5 {[%emt 0:01:02]} Qf5 {[%emt 0:04:28]} 18. Nd6 {[%emt 0:16:18]} Qg6 {[%emt 0:04:00]} 19. b5 {[%emt 0:04:36]} Ne7 {[%emt 0:02:07]} 20. Nxc8 {[%emt 0:02:36]} Raxc8 {[%emt 0:00:20]} 21. Bxb7 {[%emt 0:00:53]} Rxc1 {[%emt 0:00:56]} 22. Qxc1 {[%emt 0:00:39]} h6 {[%emt 0:01:34]} 23. Bd6 {[%emt 0:03:22]} Qxg5 {[%emt 0:04:01]} 24. Bxe7 {[%emt 0:00:27]} Re8 {[%emt 0:02:08]} 25. Qxg5 {[%emt 0:00:16]} hxg5 {[%emt 0:00:08]} 26. Bxf6 {[%emt 0:01:19]} gxf6 {[%emt 0:00:06]} 27. Bf3 {[%emt 0:00:21]} f5 {[%emt 0:00:14]} 28. h3 {[%emt 0:00:40]} Rd8 {[%emt 0:01:16]} 29. Rd1 {[%emt 0:00:34]} Kg7 {[%emt 0:01:22]} 30. Bh5 {[%emt 0:00:58]} Rh8 {[%emt 0:00:14]} 31. g4 {[%emt 0:00:26]} fxg4 {[%emt 0:01:06]} 32. hxg4 {[%emt 0:00:16]} f5 {[%emt 0:00:40]} 33. f3 {[%emt 0:01:59]} fxg4 {[%emt 0:01:25]} 34. fxg4 {[%emt 0:02:19]} Rf8 {[%emt 0:00:29]} 35. Kg2 {[%emt 0:01:54]} Rc8 {[%emt 0:01:35]} 36. Rd3 {[%emt 0:01:37]} Rc3 {[%emt 0:01:10]} 37. Kf3 {[%emt 0:00:21]} Kf6 {[%emt 0:00:19]} 38. Be8 {[%emt 0:02:12]} Ke5 {[%emt 0:01:37]} 39. Rxc3 {[%emt 0:00:27]} dxc3 {[%emt 0:00:08]} 40. Bg6 {[%emt 0:00:08]} Bc5 {[%emt 0:01:07]} 41. a4 {[%emt 0:30:23]} Bb6 {[%emt 0:30:18]} 42. Bd3 {[%emt 0:00:13]} Kd4 {[%emt 0:00:32]} 43. Bc2 {[%emt 0:00:18]} Ke5 {[%emt 0:00:53]} 44. e3 {[%emt 0:00:29]} Kd5 {[%emt 0:00:32]} 45. Ke2 {[%emt 0:01:01]} Kc4 {[%emt 0:00:32]} 46. Kf2 {[%emt 0:00:16]} Kc5 {[%emt 0:00:45]} 47. Kf3 {[%emt 0:00:34]} Kd5 {[%emt 0:00:06]} 48. e4+ {[%emt 0:00:14]} Ke5 {[%emt 0:00:06]} 49. Bd3 {[%emt 0:00:16]} Kd4 {[%emt 0:00:46]} 1/2-1/2

[Event "94th FRA-ch Open D 2019"]
[Site "Chartres"]
[Date "2019.08.20"]
[Round "4.6"]
[White "Catherinot, Laetitia"]
[Black "Henry, Loic"]
[Result "1/2-1/2"]
[ECO "E97"]
[WhiteElo "1587"]
[BlackElo "1476"]
[Annotator "NA"]
[PlyCount "103"]
[EventDate "2019.08.17"]
[EventType "swiss"]
[EventCountry "FRA"]
[SourceTitle "playchess.com"]
[Source "ChessBase"]
[SourceQuality "1"]
[TimeControl "40/5400+30:1800+30"]

1. c4 {[%emt 0:00:00]} Nf6 {[%emt 0:01:50]} 2. Nc3 {[%emt 0:02:32]} d6 {[%emt 0:02:26]} 3. d4 {[%emt 0:02:56]} g6 {[%emt 0:00:56]} 4. e4 {[%emt 0:00:40]} Bg7 {[%emt 0:01:01]} 5. Be3 {[%emt 0:00:07]} O-O {[%emt 0:01:12]} 6. Be2 {[%emt 0:01:33]} Nc6 {[%emt 0:04:15]} 7. Nf3 {[%emt 0:00:18]} e5 {[%emt 0:01:55]} 8. d5 {[%emt 0:02:04]} Ne7 {[%emt 0:02:08]} 9. O-O {[%emt 0:00:58]} a6 {[%emt 0:03:09]} 10. Nd2 {[%emt 0:06:14]} Nd7 {[%emt 0:02:47]} 11. f4 {[%emt 0:05:45]} f5 {[%emt 0:03:25]} 12. Rc1 {[%emt 0:08:01]} exf4 {[%emt 0:04:52]} 13. Bxf4 {[%emt 0:01:00]} Ne5 {[%emt 0:03:12]} 14. Bg5 {[%emt 0:08:59]} h6 {[%emt 0:07:20]} 15. Be3 {[%emt 0:05:12]} Bd7 {[%emt 0:07:45]} 16. Nf3 {[%emt 0:06:04]} f4 {[%emt 0:10:28]} 17. Bd4 {[%emt 0:01:52]} Nxf3+ {[%emt 0:03:01]} 18. Bxf3 {[%emt 0:00:37]} g5 {[%emt 0:05:47]} 19. Bxg7 {[%emt 0:00:20]} Kxg7 {[%emt 0:00:11]} 20. Qd4+ {[%emt 0:00:19]} Kh7 {[%emt 0:00:26]} 21. e5 {[%emt 0:10:32]} dxe5 {[%emt 0:15:17]} 22. Qxe5 {[%emt 0:01:02]} Ng6 {[%emt 0:01:28]} 23. Qd4 {[%emt 0:06:09]} Rb8 {[%emt 0:05:29]} 24. a4 {[%emt 0:10:43]} Bf5 {[%emt 0:04:58]} 25. Be4 {[%emt 0:02:35]} Qf6 {[%emt 0:02:41]} 26. Qxf6 {[%emt 0:00:47]} Rxf6 {[%emt 0:00:05]} 27. Bxf5 {[%emt 0:00:17]} Rxf5 {[%emt 0:00:08]} 28. c5 {[%emt 0:03:41]} Ne5 {[%emt 0:00:48]} 29. Rcd1 {[%emt 0:02:33]} Rd8 {[%emt 0:02:06]} 30. d6 {[%emt 0:01:27]} cxd6 {[%emt 0:00:40]} 31. cxd6 {[%emt 0:01:03]} Nc4 {[%emt 0:00:35]} 32. Rfe1 {[%emt 0:04:15]} Rxd6 {[%emt 0:00:42]} 33. Re7+ {[%emt 0:00:40]} Kg6 {[%emt 0:02:01]} 34. Rxb7 {[%emt 0:00:23]} Rxd1+ {[%emt 0:00:39]} 35. Nxd1 {[%emt 0:00:06]} Rd5 {[%emt 0:01:10]} 36. Nc3 {[%emt 0:00:55]} Re5 {[%emt 0:00:25]} 37. Kf2 {[%emt 0:00:23]} a5 {[%emt 0:00:37]} 38. b3 {[%emt 0:00:56]} Ne3 {[%emt 0:00:27]} 39. h3 {[%emt 0:01:20]} Rc5 {[%emt 0:00:35]} 40. Rb6+ {[%emt 0:00:58]} Kg7 {[%emt 0:00:18]} 41. Rb7+ {[%emt 0:32:36]} Kg6 {[%emt 0:30:39]} 42. Rb6+ {[%emt 0:01:30]} Kh5 {[%emt 0:00:00]} 43. Ne4 {[%emt 0:00:00]} Rc2+ {[%emt 0:00:00]} 44. Ke1 {[%emt 0:00:00]} Nxg2+ {[%emt 0:00:00]} 45. Kd1 {[%emt 0:00:00]} Ne3+ {[%emt 0:00:00]} 46. Ke1 {[%emt 0:00:00]} f3 {[%emt 0:00:00]} 47. Nd2 {[%emt 0:00:00]} Kh4 {[%emt 0:00:00]} 48. Nxf3+ {[%emt 0:00:00]} Kxh3 {[%emt 0:02:03]} 49. Rxh6+ {[%emt 0:00:00]} Kg4 {[%emt 0:00:46]} 50. Nd4 {[%emt 0:00:00]} Ng2+ {[%emt 0:00:57]} 51. Kd1 {[%emt 0:00:00]} Ne3+ {[%emt 0:00:09]} 52. Ke1 {[%emt 0:05:38]} 1/2-1/2

[Event "94th FRA-ch Open D 2019"]
[Site "Chartres"]
[Date "2019.08.21"]
[Round "5.1"]
[White "Minatchy, Tristan"]
[Black "Legeay, Julie"]
[Result "1-0"]
[ECO "B23"]
[WhiteElo "1452"]
[BlackElo "1531"]
[Annotator "NA"]
[PlyCount "63"]
[EventDate "2019.08.17"]
[EventType "swiss"]
[EventCountry "FRA"]
[SourceTitle "playchess.com"]
[Source "ChessBase"]
[SourceQuality "1"]
[TimeControl "40/5400+30:1800+30"]

1. e4 {[%emt 0:00:00]} d6 {[%emt 0:00:00]} 2. Nc3 {[%emt 1:31:00]} Nf6 {[%emt 1:31:00]} 3. f4 {[%emt 0:00:00]} g6 {[%emt 0:00:00]} 4. Bc4 {[%emt 0:00:00]} Bg7 {[%emt 0:00:00]} 5. d3 {[%emt 0:00:00]} O-O {[%emt 0:00:00]} 6. Nf3 {[%emt 0:00:00]} c5 {[%emt 0:00:00]} 7. O-O {[%emt 0:00:00]} Nc6 {[%emt 0:00:00]} 8. Bb3 {[%emt 0:00:00]} Rb8 {[%emt 0:00:00]} 9. Qe1 {[%emt 0:00:00]} b5 {[%emt 0:00:00]} 10. Qh4 {[%emt 0:00:00]} b4 {[%emt 0:00:00]} 11. Ne2 {[%emt 0:00:00]} a5 {[%emt 0:00:00]} 12. f5 {[%emt 0:00:00]} e6 {[%emt 0:00:00]} 13. fxg6 {[%emt 0:00:00]} hxg6 {[%emt 0:00:00]} 14. Ng5 {[%emt 0:00:00]} Re8 {[%emt 0:00:00]} 15. Bf4 {[%emt 0:00:00]} Ne5 {[%emt 0:00:00]} 16. Bxe5 {[%emt 0:00:00]} dxe5 {[%emt 0:00:00]} 17. Rxf6 {[%emt 0:00:00]} Qxf6 {[%emt 0:00:00]} 18. Rf1 {[%emt 0:00:00]} Qe7 {[%emt 0:00:00]} 19. Qh7+ {[%emt 0:00:00]} Kf8 {[%emt 0:00:00]} 20. Qxg6 {[%emt 0:00:00]} Rb7 {[%emt 0:00:00]} 21. Kh1 {[%emt 0:00:00]} Kg8 {[%emt 0:00:00]} 22. Rxf7 {[%emt 0:00:00]} Qxf7 {[%emt 0:00:00]} 23. Nxf7 {[%emt 0:00:00]} Rxf7 {[%emt 0:00:00]} 24. Ng3 {[%emt 0:00:00]} Bd7 {[%emt 0:00:00]} 25. h4 {[%emt 0:00:00]} Rf6 {[%emt 0:00:56]} 26. Qg5 {[%emt 0:00:00]} Ref8 {[%emt 0:11:04]} 27. Nh5 {[%emt 0:00:00]} R6f7 {[%emt 0:00:00]} 28. Qg6 {[%emt 0:00:00]} Re7 {[%emt 0:00:00]} 29. Bxe6+ {[%emt 0:00:01]} Bxe6 {[%emt 0:00:00]} 30. Nxg7 {[%emt 0:00:12]} Rxg7 {[%emt 0:00:00]} 31. Qxe6+ {[%emt 0:00:08]} Rgf7 {[%emt 0:00:00]} 32. Qxe5 {[%emt 0:01:13]} 1-0

[Event "94th FRA-ch Open D 2019"]
[Site "Chartres"]
[Date "2019.08.21"]
[Round "5.2"]
[White "Rolland Piegue, Sacha"]
[Black "Nezosi, Christophe"]
[Result "1-0"]
[ECO "A25"]
[WhiteElo "1385"]
[BlackElo "1523"]
[Annotator "NA"]
[PlyCount "89"]
[EventDate "2019.08.17"]
[EventType "swiss"]
[EventCountry "FRA"]
[SourceTitle "playchess.com"]
[Source "ChessBase"]
[SourceQuality "1"]
[TimeControl "40/5400+30:1800+30"]

1. c4 {[%emt 0:00:00]} Nf6 {[%emt 0:02:59]} 2. Nc3 {[%emt 0:00:00]} e5 {[%emt 0:01:03]} 3. e3 {[%emt 0:01:22]} Nc6 {[%emt 0:01:34]} 4. g3 {[%emt 0:01:19]} Bc5 {[%emt 0:03:05]} 5. Nge2 {[%emt 0:01:03]} O-O {[%emt 0:04:16]} 6. Bg2 {[%emt 0:00:17]} d5 {[%emt 0:08:42]} 7. Nxd5 {[%emt 0:04:55]} Nxd5 {[%emt 0:01:00]} 8. cxd5 {[%emt 0:00:24]} Nb4 {[%emt 0:09:31]} 9. Qb3 {[%emt 0:01:40]} Bg4 {[%emt 0:01:00]} 10. d4 {[%emt 0:01:11]} exd4 {[%emt 0:03:33]} 11. Nxd4 {[%emt 0:00:29]} a5 {[%emt 0:05:16]} 12. O-O {[%emt 0:00:49]} Qf6 {[%emt 0:05:36]} 13. a3 {[%emt 0:04:15]} a4 {[%emt 0:05:47]} 14. Qc4 {[%emt 0:00:59]} Na6 {[%emt 0:00:48]} 15. Qxa4 {[%emt 0:00:36]} Rad8 {[%emt 0:06:23]} 16. Qb3 {[%emt 0:04:17]} b6 {[%emt 0:05:38]} 17. Qc4 {[%emt 0:01:34]} Nb8 {[%emt 0:01:39]} 18. Bd2 {[%emt 0:00:38]} Nd7 {[%emt 0:01:25]} 19. Bc3 {[%emt 0:01:07]} Ne5 {[%emt 0:00:45]} 20. Qb5 {[%emt 0:00:38]} Bd7 {[%emt 0:02:34]} 21. Qb3 {[%emt 0:05:12]} Qh6 {[%emt 0:01:58]} 22. Nf5 {[%emt 0:02:45]} Bxf5 {[%emt 0:02:08]} 23. Bxe5 {[%emt 0:01:27]} Rd7 {[%emt 0:01:00]} 24. Rfd1 {[%emt 0:00:54]} Re8 {[%emt 0:02:42]} 25. Bd4 {[%emt 0:00:58]} Bd6 {[%emt 0:00:51]} 26. Re1 {[%emt 0:01:02]} Rde7 {[%emt 0:02:19]} 27. a4 {[%emt 0:02:42]} Qg6 {[%emt 0:02:46]} 28. a5 {[%emt 0:00:28]} bxa5 {[%emt 0:01:56]} 29. Rxa5 {[%emt 0:00:15]} Be4 {[%emt 0:02:58]} 30. f3 {[%emt 0:00:51]} Bc2 {[%emt 0:08:53]} 31. Qc3 {[%emt 0:02:41]} Rb8 {[%emt 0:01:03]} 32. Rc1 {[%emt 0:00:23]} Bb4 {[%emt 0:02:17]} 33. Qxb4 {[%emt 0:00:41]} Ree8 {[%emt 0:01:26]} 34. Qc3 {[%emt 0:00:23]} Bf5 {[%emt 0:00:35]} 35. Ra7 {[%emt 0:03:54]} c5 {[%emt 0:01:17]} 36. dxc6 {[%emt 0:00:28]} Rbc8 {[%emt 0:00:29]} 37. b4 {[%emt 0:00:27]} Qd6 {[%emt 0:00:42]} 38. b5 {[%emt 0:01:12]} Qb8 {[%emt 0:00:35]} 39. b6 {[%emt 0:00:55]} Qd6 {[%emt 0:01:01]} 40. Bxg7 {[%emt 0:01:09]} Qe6 {[%emt 0:00:00]} 41. Bd4 {[%emt 0:30:27]} Bg6 {[%emt 0:30:21]} 42. b7 {[%emt 0:00:39]} Rc7 {[%emt 0:00:00]} 43. Ra8 {[%emt 0:00:00]} Rce7 {[%emt 0:00:00]} 44. c7 {[%emt 0:00:00]} Qd7 {[%emt 0:00:00]} 45. Rxe8+ {[%emt 0:00:00]} 1-0